Cogmind - Beta 16 @@@ ROGUE MODE // 2025.12.16 @ 06:49:26 Player: shapeshifter Result: Destroyed by S-43 Plague with Heavy Machine Gun Performance ------------- Evolutions (6) 3000 Regions Visited (11) 2200 Robots Destroyed (2) 10 Value Destroyed (26) 26 Prototype IDs (7) 140 Alien Tech Used (0) 0 Bonus (4125) 4125 TOTAL SCORE: 9501 Bonus ------- Pacifist 1825 Entered DSFs 500 Registered with UFD 300 Met Optimus in HQ 500 Met Warlord at Base 500 MAIN.C Attacked Warlord 500 Cogmind --------- Core Integrity 0/1150 Matter 285/300 Energy 99/100 System Corruption 2% Temperature Cool (0) Movement Core (50) Location -3/Proximity Caves Parts ------- > --- POWER (1) -------- (None) > --- PROPULSION (2) --- (None) > --- UTILITY (14) ----- Enhanced Optical Array Improved Sensor Array Improved Signal Interpreter Surveybot 17 Chip Core Analyzer Makeshift System Shield > --- WEAPON (2) ------- (None) > --- INVENTORY (5) ---- Fusion Compressor Advanced System Shield Compact HERF Cannon Vortex Lance Vortex Lance Peak State ------------ > --- POWER ------------ Fusion Compressor > --- PROPULSION ------- (None) > --- UTILITY ---------- Deep Structural Scanner Enhanced Optical Array Improved Sensor Array Improved Signal Interpreter Experimental Signal Interpreter Experimental Terrain Scanner Surveybot 17 Chip Advanced Melee Analysis Suite Advanced Melee Analysis Suite Core Analyzer Improved Hacking Suite System Shield > --- WEAPON ----------- (None) > --- INVENTORY -------- Improved Reaction Control System Enhanced Scrap Shield Compact HERF Cannon [Rating: 68] Favorites ----------- Power Fusion Compressor Engine Backup Power III Power Core Fusion Compressor Propulsion None Utility Surveybot 17 Chip Device Experimental Terrain Scanner Processor Surveybot 17 Chip Hackware Makeshift System Shield Weapon Medium Laser Energy Gun Medium Laser Energy Cannon Compact HERF Cannon Ballistic Gun Light Assault Rifle Impact Weapon Mace Slashing Weapon Makeshift Axe Piercing Weapon Lance Build | -11 -10 -10 -9 -6 -5 -5 -4 -4 -4 -4 -3 ------- Run | Yrd Mat Sub Scr Fac Fac DSF Fac Upp Upp War Pro Slots Evolved 12 | . . . . 8 2 . 2 . . . . Power . | . . . . . . . . . . . . Propulsion . | . . . . . . . . . . . . Utility 12 | . . . . 8 2 . 2 . . . . Weapon . | . . . . . . . . . . . . Parts Attached 28 | 2 . . 4 5 . . 8 1 . 5 3 Power 1 | . . . . . . . 1 . . . . Engine . | . . . . . . . . . . . . Core 1 | . . . . . . . 1 . . . . Reactor . | . . . . . . . . . . . . Propulsion . | . . . . . . . . . . . . Treads . | . . . . . . . . . . . . Leg . | . . . . . . . . . . . . Wheel . | . . . . . . . . . . . . Hover . | . . . . . . . . . . . . Flight . | . . . . . . . . . . . . Utility 21 | . . . 3 5 . . 6 1 . 3 3 Device 7 | . . . 2 . . . 1 1 . . 3 Storage . | . . . . . . . . . . . . Processor 9 | . . . 1 4 . . 4 . . . . Hackware 5 | . . . . 1 . . 1 . . 3 . Protection . | . . . . . . . . . . . . Artifact . | . . . . . . . . . . . . Weapon 6 | 2 . . 1 . . . 1 . . 2 . Energy Gun 1 | 1 . . . . . . . . . . . Energy Cannon 1 | . . . . . . . 1 . . . . Ballistic Gun 1 | 1 . . . . . . . . . . . Ballistic Cannon . | . . . . . . . . . . . . Launcher . | . . . . . . . . . . . . Special Weapon . | . . . . . . . . . . . . Impact Weapon 1 | . . . 1 . . . . . . . . Slashing Weapon 1 | . . . . . . . . . . 1 . Piercing Weapon 1 | . . . . . . . . . . 1 . Special Melee Weapon . | . . . . . . . . . . . . Unidentified Prototypes . | . . . . . . . . . . . . Parts Lost 15 | . . . . . . 3 . . 7 . 5 Power . | . . . . . . . . . . . . Propulsion . | . . . . . . . . . . . . Utility 13 | . . . . . . 2 . . 7 . 4 Weapon 2 | . . . . . . 1 . . . . 1 Highest Loss Streak 6 | . . . . . . 3 . . 6 . 5 To Critical Strikes . | . . . . . . . . . . . . Average Backups 4 | 1 3 3 4 4 5 5 3 3 5 5 4 Power . | . 2 1 . . . . . . 1 1 1 Propulsion . | . . . . . . . . . . . . Utility 1 | . . . 1 3 3 3 2 1 2 1 . Weapon 1 | 1 1 1 1 . 1 1 . 1 2 2 3 Tool/Special . | . . . . . . . . . . . . Unused Backups 11 | . . 2 2 2 . 1 . 1 . 1 2 Power 2 | . . 1 1 . . . . . . . . Propulsion . | . . . . . . . . . . . . Utility 4 | . . . 1 1 . . . 1 . 1 . Weapon 4 | . . 1 . 1 . . . . . . 2 Tool/Special 1 | . . . . . . 1 . . . . . Average Slot Usage (%) 35 | . 28 28 33 24 47 38 41 63 49 33 41 Device 4 | . . . 5 6 5 5 10 14 7 . 1 Processor 13 | . . . 5 10 29 24 20 36 34 26 24 Hackware 2 | . . . . . 5 5 5 10 6 3 11 Energy Gun 6 | . 14 14 9 . . . . . . . . Ballistic Gun 5 | . 14 14 8 . . . . . . . . Impact Weapon 1 | . . . 4 6 5 2 . . . . . Peak Build Rating 68 | 2 2 4 21 39 39 39 61 68 64 48 49 Average Rating 22 | . 2 3 10 23 39 32 44 64 47 32 38 On Entrance 27 | . 2 2 4 21 39 39 29 59 64 27 43 Avg Prop Armor Cover (%) . | . . . . . . . . . . . . Naked Turns . | . . . . . . . . . . . . Heaviest Build 14 | 3 3 3 3 3 3 3 14 3 3 5 3 Greatest Support 3 | 3 3 3 3 3 3 3 3 3 3 3 3 Greatest Overweight (x) 4 | . . . . . . . 4 . . 1 . Average Overweight (x) . | . . . . . . . . . . . . Largest Inventory Capacity 5 | 5 5 5 5 5 5 5 5 5 5 5 5 Average Capacity 5 | 5 5 5 5 5 5 5 5 5 5 5 5 Most Carried 5 | 5 3 5 5 5 5 5 5 5 5 5 5 Average Carried 4 | 2 3 4 4 4 5 4 2 4 5 4 4 Final Capacity 5 | 5 5 5 5 5 5 5 5 5 5 5 5 Final Carried 5 | 3 3 5 5 5 5 5 4 5 5 5 5 Class Distribution -------------------- 74% | Mutant 10% | Hacker-Scout 8% | Scout 6% | Hacker-Mutant Dominant Class ---------------- Mutant | -10/Materials Mutant | -10/Subcaves Mutant | -9/Scraptown Mutant | -6/Factory Scout | -5/Factory Scout | -5/DSF Mutant | -4/Factory Hacker-Scout | -4/Upper Caves Hacker-Scout | -4/Upper Caves Mutant | -4/Warlord Hacker-Mutant | -3/Proximity Caves Resources | -11 -10 -10 -9 -6 -5 -5 -4 -4 -4 -4 -3 ----------- Run | Yrd Mat Sub Scr Fac Fac DSF Fac Upp Upp War Pro Matter Collected 617 | 171 49 7 60 . . 40 141 102 . . 47 Remotely . | . . . . . . . . . . . . Salvage Created 158 | . . 17 . . . . 141 . . . . Parts 5 | . . . . . . . 5 . . . . Haulers Intercepted 1 | . . . . . . . 1 . . . . Recyclers Shooed . | . . . . . . . . . . . . Parts Field Recycled . | . . . . . . . . . . . . Retrieved Matter . | . . . . . . . . . . . . Parts Self-Destructed 8 | . . 8 . . . . . . . . . Prevented . | . . . . . . . . . . . . Parts Restored . | . . . . . . . . . . . . Kills | -11 -10 -10 -9 -6 -5 -5 -4 -4 -4 -4 -3 ------- Run | Yrd Mat Sub Scr Fac Fac DSF Fac Upp Upp War Pro Combat Hostiles Destroyed . | . . . . . . . . . . . . Classes Destroyed 3 | . . 1 . . . . 2 . . . . Worker 1 | . . . . . . . 1 . . . . Hauler 1 | . . . . . . . 1 . . . . Artisan 1 | . . 1 . . . . . . . . . Best Kill Streak 1 | . . . . . . . 1 . . . . Combat Bots Only . | . . . . . . . . . . . . Max Kills in Single Turn 1 | . . 1 . . . . 1 . . . . Gunslinging . | . . . . . . . . . . . . Exploded . | . . . . . . . . . . . . Melee . | . . . . . . . . . . . . Uniques/NPCs Destroyed . | . . . . . . . . . . . . Combat | -11 -10 -10 -9 -6 -5 -5 -4 -4 -4 -4 -3 -------- Run | Yrd Mat Sub Scr Fac Fac DSF Fac Upp Upp War Pro Hostile Shots Fired 185 | . . 3 . 27 . 10 . 6 81 7 51 Missed 78 | . . . . 15 . 1 . 2 30 3 27 Hits 107 | . . 3 . 12 . 9 . 4 51 4 24 Projectile 107 | . . 3 . 12 . 9 . 4 51 4 24 AOE 1 | . . . . . . . . . . 1 . Critical Strikes 1 | . . . . . . . . . 1 . . Damage Taken 2214 | . . 64 . 95 . 423 . 84 870 98 580 Core 1625 | . . 45 . 45 . 371 . 43 639 98 384 Absorbed by Shields 77 | . . . . . . 77 . . . . . Core Remaining (%) 84 | 100 . . 82 94 . 62 . . . . . Volleys Fired 11 | . 1 6 . . . . 4 . . . . Largest 2 | . 2 2 . . . . 1 . . . . Hottest 94 | . 70 70 . . . . 94 . . . . Shots Fired 18 | . 2 12 . . . . 4 . . . . Gun 14 | . 2 12 . . . . . . . . . Cannon 4 | . . . . . . . 4 . . . . Launcher . | . . . . . . . . . . . . Special . | . . . . . . . . . . . . Kinetic 7 | . 1 6 . . . . . . . . . Thermal 7 | . 1 6 . . . . . . . . . Explosive . | . . . . . . . . . . . . Electromagnetic 4 | . . . . . . . 4 . . . . Robot Hit Streak 14 | . 1 10 . . . . 14 . . . . Robot Miss Streak 2 | . 1 2 . . . . . . . . . Penetration Max . | . . . . . . . . . . . . Secondary Targets . | . . . . . . . . . . . . Shots Hit Robots 15 | . 1 10 . . . . 4 . . . . Core Hits 3 | . . 1 . . . . 2 . . . . Critical Kills . | . . . . . . . . . . . . Critical Parts Destroyed . | . . . . . . . . . . . . Critical Strikes . | . . . . . . . . . . . . Melee Attacks 8 | . . . . 5 3 . . . . . . Impact 8 | . . . . 5 3 . . . . . . Slashing . | . . . . . . . . . . . . Piercing . | . . . . . . . . . . . . Sneak Attacks . | . . . . . . . . . . . . Combat Hostiles . | . . . . . . . . . . . . Follow-up Attacks . | . . . . . . . . . . . . Damage Inflicted 292 | . 12 104 . . . . 176 . . . . Guns 116 | . 12 104 . . . . . . . . . Cannons 176 | . . . . . . . 176 . . . . Explosions . | . . . . . . . . . . . . Melee . | . . . . . . . . . . . . Ramming . | . . . . . . . . . . . . Kinetic 41 | . . 41 . . . . . . . . . Thermal 75 | . 12 63 . . . . . . . . . Explosive . | . . . . . . . . . . . . Electromagnetic 176 | . . . . . . . 176 . . . . Impact . | . . . . . . . . . . . . Slashing . | . . . . . . . . . . . . Piercing . | . . . . . . . . . . . . Highest Corruption 2 | . . . . . . . . . 1 1 2 Average Corruption 1 | . . . . . . . . . 1 1 1 Corruption Purged . | . . . . . . . . . . . . Corruption Blocked . | . . . . . . . . . . . . Overload Shots . | . . . . . . . . . . . . Overflow Damage . | . . . . . . . . . . . . Projectiles . | . . . . . . . . . . . . Explosions . | . . . . . . . . . . . . Melee . | . . . . . . . . . . . . Knockbacks . | . . . . . . . . . . . . Impact . | . . . . . . . . . . . . Kinetic . | . . . . . . . . . . . . Secondary . | . . . . . . . . . . . . Self-Inflicted Damage . | . . . . . . . . . . . . Shots . | . . . . . . . . . . . . Rammed . | . . . . . . . . . . . . Targets Rammed . | . . . . . . . . . . . . Kicked . | . . . . . . . . . . . . Crushed . | . . . . . . . . . . . . Highest Temperature 38 | . 20 . . . . . 38 . . . . Average Temperature 21 | . 15 . . . . . 22 . . . . Received Heat Transfer 177 | . . 18 . 30 . . . 21 30 9 69 Siege Activations . | . . . . . . . . . . . . Martial Activations . | . . . . . . . . . . . . Shielding Activations . | . . . . . . . . . . . . Robots Disrupted . | . . . . . . . . . . . . Combat Hostiles . | . . . . . . . . . . . . Robots Corrupted . | . . . . . . . . . . . . Combat Hostiles . | . . . . . . . . . . . . Parts Fried . | . . . . . . . . . . . . Impact Corruptions . | . . . . . . . . . . . . Robots Melted . | . . . . . . . . . . . . Combat Hostiles . | . . . . . . . . . . . . Parts Melted . | . . . . . . . . . . . . Heat Transferred 222 | . 37 185 . . . . . . . . . Parts Sabotaged . | . . . . . . . . . . . . Parts Stolen . | . . . . . . . . . . . . Parts Stripped . | . . . . . . . . . . . . Power Chain Reactions . | . . . . . . . . . . . . Alert | -11 -10 -10 -9 -6 -5 -5 -4 -4 -4 -4 -3 ------- Run | Yrd Mat Sub Scr Fac Fac DSF Fac Upp Upp War Pro Maximum Alert Level . | . . . . . . . . . . . . Low Security (%) 100 | 100 100 . . 100 100 100 100 . . . . Level 1 . | . . . . . . . . . . . . Level 2 . | . . . . . . . . . . . . Level 3 . | . . . . . . . . . . . . Level 4 . | . . . . . . . . . . . . Level 5 . | . . . . . . . . . . . . High Security . | . . . . . . . . . . . . Max Security . | . . . . . . . . . . . . Peak Influence 35 | . . . . 25 4 . 35 . . . . Initial . | . . . . . . . . . . . . Average 3 | . . . . 6 . . 6 . . . . Influence Increases 398 | . . . . 50 6 . 57 75 105 45 60 Destroy 0b10 Robot/NC 10 | . . . . . . . 10 . . . . Destroy Leader 2 | . . . . . . . 2 . . . . Successful Hack 31 | . . . . 31 . . . . . . . Disable Machine 15 | . . . . 15 . . . . . . . Destroy Structure 10 | . . . . 4 6 . . . . . . Partial Spotted 45 | . . . . . . . 45 . . . . Lose Combat Pursuer 285 | . . . . . . . . 75 105 45 60 Influence Decreases 348 | . . . . 50 6 . 57 30 110 50 45 Entered New Map 84 | . . . . . . . . . 9 40 35 Time Decay 213 | . . . . 50 6 . 57 30 50 10 10 Lost Part 51 | . . . . . . . . . 51 . . Squads Dispatched 1 | . 1 . . . . . . . . . . Investigation . | . . . . . . . . . . . . Extermination . | . . . . . . . . . . . . Reinforcement 1 | . 1 . . . . . . . . . . Assault . | . . . . . . . . . . . . Garrison . | . . . . . . . . . . . . Intercept . | . . . . . . . . . . . . Searches Triggered . | . . . . . . . . . . . . Construction Impeded . | . . . . . . . . . . . . Haulers Reinforced . | . . . . . . . . . . . . Active Scanning Responses . | . . . . . . . . . . . . Cargo Convoy Interrupts . | . . . . . . . . . . . . Stealth | -11 -10 -10 -9 -6 -5 -5 -4 -4 -4 -4 -3 --------- Run | Yrd Mat Sub Scr Fac Fac DSF Fac Upp Upp War Pro Distress Signals 2 | . 2 . . . . . . . . . . Communications Jammed . | . . . . . . . . . . . . Distress Signals . | . . . . . . . . . . . . Times Spotted 52 | . 9 6 . 1 . 1 . 5 12 8 10 Peak Tracking Total 9 | . 2 3 . 1 . 1 . 4 9 7 7 Tactical Retreats 8 | . . 1 . . . . . 2 2 1 2 Traps | -11 -10 -10 -9 -6 -5 -5 -4 -4 -4 -4 -3 ------- Run | Yrd Mat Sub Scr Fac Fac DSF Fac Upp Upp War Pro Traps Triggered 2 | . . . . . . 2 . . . . . Indirectly . | . . . . . . . . . . . . Trap Hack Attempts . | . . . . . . . . . . . . Triggered . | . . . . . . . . . . . . Disarmed . | . . . . . . . . . . . . Reprogrammed . | . . . . . . . . . . . . Reused . | . . . . . . . . . . . . Traps Extracted . | . . . . . . . . . . . . Installed . | . . . . . . . . . . . . Triggered . | . . . . . . . . . . . . Machines | -11 -10 -10 -9 -6 -5 -5 -4 -4 -4 -4 -3 ---------- Run | Yrd Mat Sub Scr Fac Fac DSF Fac Upp Upp War Pro Machines Disabled 1 | . . . . 1 . . . . . . . Max in Single Turn 1 | . . . . 1 . . . . . . . Machines Repaired . | . . . . . . . . . . . . Machines Dismantled . | . . . . . . . . . . . . Machines Sabotaged . | . . . . . . . . . . . . Overloaded Fab Kills . | . . . . . . . . . . . . Hacking | -11 -10 -10 -9 -6 -5 -5 -4 -4 -4 -4 -3 --------- Run | Yrd Mat Sub Scr Fac Fac DSF Fac Upp Upp War Pro Machines Accessed 11 | . . . 2 3 3 . 1 1 . 1 . Terminals 2 | . . . . . 2 . . . . . . Fabricators 2 | . . . . 2 . . . . . . . Repair Stations . | . . . . . . . . . . . . Recycling Units . | . . . . . . . . . . . . Scanalyzers 2 | . . . . . 1 . 1 . . . . Garrison Access 1 | . . . . 1 . . . . . . . Total Hacks 34 | . . . 20 4 6 . 2 1 . 1 . Successful 29 | . . . 20 2 3 . 2 1 . 1 . Failed 5 | . . . . 2 3 . . . . . . Catastrophic 2 | . . . . 1 1 . . . . . . Database Lockouts . | . . . . . . . . . . . . Manual . | . . . . . . . . . . . . Terminals 4 | . . . . . 4 . . . . . . Fabricators 3 | . . . . 3 . . . . . . . Repair Stations . | . . . . . . . . . . . . Recycling Units . | . . . . . . . . . . . . Scanalyzers 4 | . . . . . 2 . 2 . . . . Garrison Access 1 | . . . . 1 . . . . . . . Terminal Hacks 23 | . . . 20 . 1 . . 1 . 1 . Record 20 | . . . 20 . . . . . . . . Open Door 2 | . . . . . . . . 1 . 1 . Open DSF 1 | . . . . . 1 . . . . . . Fabricator Hacks 2 | . . . . 2 . . . . . . . Build 2 | . . . . 2 . . . . . . . Repair Station Hacks . | . . . . . . . . . . . . Recycling Unit Hacks . | . . . . . . . . . . . . Scanalyzer 4 | . . . . . 2 . 2 . . . . Insert Component 1 | . . . . . 1 . . . . . . Retrieve Study 3 | . . . . . 1 . 2 . . . . Garrison Access Hacks . | . . . . . . . . . . . . Unauthorized Hacks . | . . . . . . . . . . . . Terminals . | . . . . . . . . . . . . Fabricators . | . . . . . . . . . . . . Repair Stations . | . . . . . . . . . . . . Recycling Units . | . . . . . . . . . . . . Scanalyzers . | . . . . . . . . . . . . Garrison Access . | . . . . . . . . . . . . Data Cores Recovered . | . . . . . . . . . . . . Used . | . . . . . . . . . . . . Hacking Detections 4 | . . . . 2 2 . . . . . . Full Trace Events . | . . . . . . . . . . . . Feedback Events . | . . . . . . . . . . . . Feedback Blocked . | . . . . . . . . . . . . Robot Schematics Acquired . | . . . . . . . . . . . . Robots Built . | . . . . . . . . . . . . Authchips . | . . . . . . . . . . . . Time 152 | . . . . 152 . . . . . . . Total Robot Build Rating . | . . . . . . . . . . . . Part Schematics Acquired . | . . . . . . . . . . . . Parts Built 1 | . . . . 1 . . . . . . . Authchips . | . . . . . . . . . . . . Time 42 | . . . . 42 . . . . . . . Total Part Build Rating 8 | . . . . 8 . . . . . . . Part Studies Acquired 3 | . . . . . 1 . 2 . . . . Parts Repaired . | . . . . . . . . . . . . Time . | . . . . . . . . . . . . Parts Recycled . | . . . . . . . . . . . . Recycled Matter . | . . . . . . . . . . . . Retrieved Matter . | . . . . . . . . . . . . Retrieved Components . | . . . . . . . . . . . . Parts Scanalyzed . | . . . . . . . . . . . . Part Schematics Acquired . | . . . . . . . . . . . . Parts Damaged . | . . . . . . . . . . . . Bothacking | -11 -10 -10 -9 -6 -5 -5 -4 -4 -4 -4 -3 ------------ Run | Yrd Mat Sub Scr Fac Fac DSF Fac Upp Upp War Pro Used RIF Installer . | . . . . . . . . . . . . Robots Hacked . | . . . . . . . . . . . . Non-combat . | . . . . . . . . . . . . Combat . | . . . . . . . . . . . . Robot Hacks Applied . | . . . . . . . . . . . . Relay Couplers Released . | . . . . . . . . . . . . Fabnet Peak Effective % . | . . . . . . . . . . . . Robots Rewired . | . . . . . . . . . . . . Allies Hacked . | . . . . . . . . . . . . Hacks Repelled . | . . . . . . . . . . . . Allies | -11 -10 -10 -9 -6 -5 -5 -4 -4 -4 -4 -3 -------- Run | Yrd Mat Sub Scr Fac Fac DSF Fac Upp Upp War Pro Total Allies . | . . . . . . . . . . . . Largest Group . | . . . . . . . . . . . . Highest-Rated Group . | . . . . . . . . . . . . Highest-Rated Ally . | . . . . . . . . . . . . Total Orders 1 | . . . . . . . . . . . 1 ROAM 1 | . . . . . . . . . . . 1 Ally Attacks . | . . . . . . . . . . . . Total Damage . | . . . . . . . . . . . . Kills . | . . . . . . . . . . . . Allies Corrupted . | . . . . . . . . . . . . Allies Melted . | . . . . . . . . . . . . Intel | -11 -10 -10 -9 -6 -5 -5 -4 -4 -4 -4 -3 ------- Run | Yrd Mat Sub Scr Fac Fac DSF Fac Upp Upp War Pro Active Infowar (turns) 1478 | . . . 297 166 47 40 219 141 110 340 118 Optics 1088 | . . . . 73 47 40 219 141 110 340 118 Sensors 419 | . . . . . . . 204 132 67 . 16 Terrain 887 | . . . 297 166 47 40 204 132 1 . . Structural 22 | . . . . . . . . 22 . . . Robot Analysis Total . | . . . . . . . . . . . . Derelict Logs Recovered 4 | . . . 1 . . . . 1 2 . . Drone Launches 3 | . . . . . . . . . . . 3 Drone Recoveries . | . . . . . . . . . . . . Exploration | -11 -10 -10 -9 -6 -5 -5 -4 -4 -4 -4 -3 ------------- Run | Yrd Mat Sub Scr Fac Fac DSF Fac Upp Upp War Pro Turns Passed 2552 | 27 234 407 703 166 47 40 219 141 110 340 118 Spaces Moved 3784 | 41 131 432 1352 229 66 59 203 190 220 652 209 Core 3784 | 41 131 432 1352 229 66 59 203 190 220 652 209 Treads . | . . . . . . . . . . . . Legs . | . . . . . . . . . . . . Wheels . | . . . . . . . . . . . . Hover . | . . . . . . . . . . . . Flight . | . . . . . . . . . . . . Fastest Speed 50 | 50 50 50 50 50 50 50 50 50 50 50 50 Average Speed 51 | 50 50 50 50 50 50 50 82 50 50 50 50 Slowest Speed 250 | 50 50 50 50 50 50 50 250 50 50 100 50 Overloaded Moves . | . . . . . . . . . . . . Propulsion Burnouts . | . . . . . . . . . . . . Robots Hopped . | . . . . . . . . . . . . Potential Cave-ins . | . . . . . . . . . . . . Cave-ins Triggered . | . . . . . . . . . . . . Exploration Rate (%) 39 | 3 32 21 85 7 3 87 6 35 56 88 54 Regions Visited 11 Branch Regions 6 Pre-discovered Areas 6 | . . . 5 . . . . 1 . . . Known Exits Taken 6 | . . . . 1 1 . 1 1 1 1 . Unknown Exits Taken 4 | 1 1 1 1 . . . . . . . . Scrap Searched 17 | . . 4 6 . . . . 2 1 . 4 Spaces Dug 7 | . . . . 4 3 . . . . . . Terrain Destroyed 7 | . . . . 4 3 . . . . . . Melee 7 | . . . . 4 3 . . . . . . Projectile . | . . . . . . . . . . . . AOE . | . . . . . . . . . . . . Terrain Rammed . | . . . . . . . . . . . . Walls Destroyed . | . . . . . . . . . . . . Machines Disabled . | . . . . . . . . . . . . Actions | -11 -10 -10 -9 -6 -5 -5 -4 -4 -4 -4 -3 --------- Run | Yrd Mat Sub Scr Fac Fac DSF Fac Upp Upp War Pro Total 4339 | 47 297 612 1380 270 74 69 251 236 219 662 222 Wait 447 | . 166 170 8 26 6 . 26 38 . . 7 Move 3773 | 40 130 431 1351 228 65 58 202 189 219 651 209 Hop . | . . . . . . . . . . . . Pick Up 32 | 5 . 3 8 3 . 1 5 3 . 2 2 Fast Attach 11 | . . . 1 5 . . . . . 4 1 Attach 21 | 2 . . 3 . . . 10 3 . 1 2 Detach 7 | . . . 1 . . . 4 2 . . . Swap 2 | . . . 2 . . . . . . . . Drop 18 | . . 2 6 3 . 1 . 1 . 4 1 Fire 11 | . 1 6 . . . . 4 . . . . Melee 8 | . . . . 5 3 . . . . . . Ram . | . . . . . . . . . . . . Kick . | . . . . . . . . . . . . Crush . | . . . . . . . . . . . . Escape Stasis 9 | . . . . . . 9 . . . . . Rewire . | . . . . . . . . . . . . Trap . | . . . . . . . . . . . . Miscellaneous . | . . . . . . . . . . . . Route ------- -11/Scrapyard -10/Materials (discovered 4 exits: [*Mat x2] / [*Min] / [*Sub]) -10/Subcaves (discovered 2 exits: [*Mat] / *Scr) -9/Scraptown (discovered 2 exits: *Fac x2) -6/Factory (discovered 6 exits: *Fac x4 / Low x2) -5/Factory (discovered 3 exits: Upp x2 / DSF) -5/DSF -4/Factory (discovered 2 exits: *Upp / [Ext]) -4/Upper Caves -4/Upper Caves -4/Warlord -3/Proximity Caves (discovered 1 exit: *Res) History --------- Turn | Location | Event 18 | -11/Scrapyard | Discovered new exit (range 14) 28 | -11/Scrapyard | Entered Materials 29 | -10/Materials | Met a group of wandering Federalists 72 | -10/Materials | Discovered new exit (range 11) 109 | -10/Materials | Discovered new exit (range 16) 212 | -10/Materials | Discovered new exit (range 16) 245 | -10/Materials | Discovered new exit (range 8) 262 | -10/Materials | Entered Subcaves 263 | -10/Subcaves | Continued accompanying wandering Federalists (6) 304 | -10/Subcaves | Build established: Mutant 339 | -10/Subcaves | Disturbed a concealed Subdweller 432 | -10/Subcaves | A Subdweller sparked back to life 432 | -10/Subcaves | A Subdweller sparked back to life 432 | -10/Subcaves | A Subdweller sparked back to life 450 | -10/Subcaves | Discovered new exit (range 7) 453 | -10/Subcaves | Found Prototype Power Core 504 | -10/Subcaves | Wandering Federalist uncovered a shortcut to Scraptown 662 | -10/Subcaves | Shifting Twisted Machinery released Sub. Optics 669 | -10/Subcaves | Entered Scraptown 700 | -9/Scraptown | Visited Fellowship of the Rings 713 | -9/Scraptown | Scanned Subdweller tech in exchange for log data 714 | -9/Scraptown | Learned location of Zion (-7) 719 | -9/Scraptown | Discovered new exit (range 13) 750 | -9/Scraptown | Heard Great Nut preacher, LISTEN AND RECITE! 842 | -9/Scraptown | Visited Comm Corps 853 | -9/Scraptown | Visited The Evicted 858 | -9/Scraptown | Visited SPCMW 864 | -9/Scraptown | Visited Symbiants 873 | -9/Scraptown | Visited UFD Registry 873 | -9/Scraptown | Registered with UFD as "Tooltalker" 884 | -9/Scraptown | Visited Research Penetration Think Tank 895 | -9/Scraptown | Visited Abandonware Association 900 | -9/Scraptown | Learned abandonware demo "REBOOT5.EXE" 925 | -9/Scraptown | Delivered Scrap Shield to a Scientist 937 | -9/Scraptown | Visited Scrapoid Research Area 944 | -9/Scraptown | Visited Scrapoid Pod Storage 951 | -9/Scraptown | Visited Scrap Suit Storage 955 | -9/Scraptown | Visited Infowarlord's Domain 963 | -9/Scraptown | Visited Supply Room 973 | -9/Scraptown | Visited DA-N13 Charitable Foundation 976 | -9/Scraptown | Found DCF Scrap (30 items) 988 | -9/Scraptown | Visited Cartography Club 999 | -9/Scraptown | Found Surveybot 17 Chip 1012 | -9/Scraptown | Learned location of Mines (-8) 1012 | -9/Scraptown | Learned location of Cetus (-4) 1012 | -9/Scraptown | Learned location of Hub_04(d) (-4) 1012 | -9/Scraptown | Learned location of Armory (-3) 1012 | -9/Scraptown | Learned 8 Materials zone layouts 1012 | -9/Scraptown | Learned 12 Factory zone layouts 1012 | -9/Scraptown | Learned 20 Factory zone layouts 1012 | -9/Scraptown | Learned 24 Factory zone layouts 1012 | -9/Scraptown | Learned 4 Storage zone layouts 1012 | -9/Scraptown | Learned 4 Recycling zone layouts 1012 | -9/Scraptown | Learned 4 Armory zone layouts 1012 | -9/Scraptown | Learned location of 2 exits from Proximity Caves 1012 | -9/Scraptown | Learned location of 3 exits from Proximity Caves 1028 | -9/Scraptown | Found Deep Structural Scanner 1069 | -9/Scraptown | Found Exp. Terrain Scanner 1075 | -9/Scraptown | Discovered new exit (range 17) 1094 | -9/Scraptown | Received an X-ray algorithm 1344 | -9/Scraptown | Met Optimus 1344 | -9/Scraptown | Accepted into 0bPrime 1372 | -9/Scraptown | Entered Factory 1372 | -6/Factory | Evolved 8 slots: Utility x8 1373 | -6/Factory | Identified exit to Lower Caves 1374 | -6/Factory | Identified exit to Factory 1446 | -6/Factory | Fabricated Com. HERF Cannon (x1) 1538 | -6/Factory | Entered another Factory area 1538 | -5/Factory | Evolved 2 slots: Utility x2 1539 | -5/Factory | Identified exit to Upper Caves 1579 | -5/Factory | Identified Meta Core 1585 | -5/Factory | Identified exit to DSF 1585 | -5/Factory | Entered DSF 1604 | -5/DSF | Discovered new exit (range 16) 1607 | -5/DSF | Additional patrols routed to DSF 1625 | -5/DSF | Identified exit to Factory 1625 | -5/DSF | Entered Factory 1625 | -4/Factory | Evolved 2 slots: Utility x2 1626 | -4/Factory | Identified exit to Upper Caves 1644 | -4/Factory | Lost 3 parts (2u1w) 1656 | -4/Factory | Discovered new exit (range 29) 1659 | -4/Factory | Spotted B-86 Titan 1743 | -4/Factory | Found Exp. Signal Interpreter 1844 | -4/Factory | Entered Upper Caves 1846 | -4/Upper Caves | UFD Scientist delivered a prototype 1849 | -4/Upper Caves | Found Prototype Protection 1856 | -4/Upper Caves | Learned location of Testing (-3) 1936 | -4/Upper Caves | Discovered new exit (range 30) 1968 | -4/Upper Caves | Encountered a Warlord checkpoint 1984 | -4/Upper Caves | Identified exit to Upper Caves 1985 | -4/Upper Caves | Entered another Upper Caves area 2049 | -4/Upper Caves | Attracted the attention of an 0b10 checkpoint 2056 | -4/Upper Caves | Learned Research terminal intel 2074 | -4/Upper Caves | Core integrity fell below 50% 2089 | -4/Upper Caves | Discovered new exit (range 14) 2095 | -4/Upper Caves | Identified exit to Warlord 2095 | -4/Upper Caves | Entered Warlord 2096 | -4/Warlord | Identified exit to Proximity Caves 2113 | -4/Warlord | System corruption cleaned by Quarantine Array 2115 | -4/Warlord | Lost 6 parts (6u) 2283 | -4/Warlord | Rebuked by Warlord 2308 | -4/Warlord | Warlord's base attacked by MAIN.C 2369 | -4/Warlord | Found Prototype Piercing Weapon 2370 | -4/Warlord | Found Prototype Piercing Weapon 2426 | -4/Warlord | Spotted B-90 Cyclops 2435 | -4/Warlord | Entered Proximity Caves 2436 | -3/Proximity Caves | Identified exit to Research 2444 | -3/Proximity Caves | Attracted the attention of an 0b10 checkpoint 2493 | -3/Proximity Caves | Lost 3 allies 2494 | -3/Proximity Caves | Spotted B-86 Titan 2517 | -3/Proximity Caves | Core integrity fell below 20% 2528 | -3/Proximity Caves | Encountered a Derelict guarding a broken Freighter 2551 | -3/Proximity Caves | Lost 5 parts (4u1w) 2553 | -3/Proximity Caves | Destroyed by S-43 Plague with Heavy Machine Gun Last Messages --------------- 02509_ Mak. Axe destroyed. 02516_ Adv. Melee Analysis Suite destroyed. 02516_ Mak. System Shield destroyed. 02520_ Imp. Reaction Control System destroyed. 02528_ 96-WFV(g): "There's a broken freighter here! But we didn't do it... How did that happen?" 02535_ Searching scrap... 02535_ Found Particle Reactor. 02535_ Found Imp. Sensor Array. 02535_ Found Mak. ECM Suite. 02535_ Found Imp. Recalibrator. 02535_ Found 30 Matter. 02536_ Acquired Imp. Sensor Array. 02545_ Searching scrap... 02545_ Found Adv. System Shield. 02545_ Found Remote Shield. 02545_ Found Seismic Detector. 02545_ Found Lrn. Tractor Beam. 02545_ Found 40 Matter. 02546_ Acquired Adv. System Shield. Map ----- +----------------------------------------------------+ | ?????????????????????????????????????????????????? | | ####?????????????????????????????????????????????? | | # ##??????????????????##????????????????????????? | | ##???????????????? #????????????????????????? | | #???????????????? ##???????????????????????? | | #???????????????? ##??????????????????????? | | ### #??????????????? ######?????????????????? | | ??# ######????###??? #?????????????????? | | ??# ## ###### #??? #??????????????????? | | ?## #??# #???????????????????? | | ?# ### #??????????????????????? | | ?# !* #???????????????????????? | | ?##%! #???????????????????????? | | ### #????????????????????????? | | ! #?????????????????????????? | | %!####?????????????????????????? | | ## ##! #????????????????????????????? | | ## ### ## #????????????????????????????? | | #?## ####?# ## #####????????????????????????? | | ???#####???? ## #????????????????????????? | | ??????????? ###### #????????????????????????? | | ##????????? ?????# #????????????????????????? | | ??????????# #???## ##???????????????????????? | | ?????????? ##???# #???????????????????????? | | ????????? #???## ### #??????????????????? | | ???????? #???# @ #???????????????????? | | ??????? #### #??# #???????????????????? | | ??????? ???## #?# #### s#??s??????????????? | | ?????? ?????## #?# #????s ???????????????? | | ????? ????????##?# ####????? ?????????????? | | ????# ??????????# ?????????? s #???????????? | | ????# ?????????? ???????????< #??????????? | | ????#?????????? ???????????? #??????????? | | ????????????? k ?????????????? ##??????????? | | ????????????# ##????????????????##???????????? | | ??????????? #???????????????????????????????? | | ?????????? #????????????????????????????????? | | ????????? % ?????????????????????????????????? | | ?????????# ###??????????????????????????????????? | | ?????????###?????????????????????????????????????? | | ?????????????????????????????????????????????????? | | ?????????????????????????????????????????????????? | | ?????????????????????????????????????????????????? | | ?????????????????????????????????????????????????? | | ?????????????????????????????????????????????????? | | ?????????????????????????????????????????????????? | | ?????????????????????????????????????????????????? | | ?????????????????????????????????????????????????? | | ?????????????????????????????????????????????????? | | ?????????????????????????????????????????????????? | +----------------------------------------------------+ Best States ------------- Heat Dissipation 43 Energy Generation 27 Energy Capacity 100 Matter Stores 300 Matter Capacity 300 Sight Range 22 Robot Scan Range 15 Terrain Scan Range 30 Terrain Scan Density 1210 Corruption Block 8 Evasion (%) 50 Melee Accuracy 16 Core Analysis 6 Offensive Hacking 12 Defensive Hacking 33 Item Schematics ----------------- None Robot Schematics ------------------ None Fabricated ------------ Com. HERF Cannon | x1 | -6/Factory | Preloaded Repaired ---------- Nothing Studied --------- Mace | -5/Factory | Hacked Fusion Compressor | -4/Factory | Hacked Com. HERF Cannon | -4/Factory | Hacked Alien Tech Used ----------------- None Achievements -------------- None Challenges ------------ None Game ------ Seed CloakingWeldingDevice Manual? 0 Play Time 00:28:51 Cumulative 625.2 hours Start 2025.12.16 @ 06:16:14 End 2025.12.16 @ 06:49:26 Sessions 1 Manual Loads 0 Difficulty Rogue Special Mode None Game No. 789 Rogue 789 Adventurer 0 Explorer 0 Win Type - Total 23 Types 10/1/3/3/2/0/2/2/0/0 Lore% 96 Gallery% 92 Achievement% 80 Wizard Run 0 Options --------- Layout 0 ASCII 0 Keyboard 0 Movement Mouse Keybinds 0 Fullscreen 1 Font 24/Terminus Map View 76x50 Zoom Use 0% Tactical HUD 1 Map Filters NONE Filters NONE Steam 1 RUN: 03280394-769b-4b22-91ee-fa46a39e9501